{"text_format":"3","workbook":"xlsx","n_sheets":1,"sheets":["NHS"],"read":"whole","date_system":"1900"}

{"sheet":"NHS","index":0,"n_rows":55,"n_cols":32,"rows_kept":55,"merged":[[0,0,0,1],[1,0,1,1],[2,0,2,1],[3,0,3,1],[3,18,3,19],[3,20,3,21],[3,22,3,23],[3,24,3,25],[3,26,3,27],[3,28,3,29],[3,30,3,31],[4,18,4,19],[4,20,4,21],[4,22,4,23],[4,24,4,25],[4,26,4,27],[4,28,4,29],[4,30,4,31]]}
[" PNHS Football Supplies 2023-2024"]
["RFP # 30345"]
["AD's: Please return to Kristina Lafferty no later than April 21, 2023"]
["Vendors: Proposal Due No Later Than 1:00pm on May 10, 2023",{"$nulls":16},"Vendor Name"]
[{"$nulls":17},"Iran Form",false,null,false,null,false,null,false,null,false,null,false,null,false]
["Qty","Item Needed NHS Football ","Links/Examples","Description","Color (If applies)","One Size","small ","medium","large ","x large","xx large","xxx large","Total Quanity","Qty\nDifference","Unit Cost","Total Cost","Price Per\nUnit","Total Cost","$ Per Unit","Total Cost","$ Per Unit","Total Cost","$ Per Unit","Total Cost","$ Per Unit","Total Cost","$ Per Unit","Total Cost","$ Per Unit","Total Cost","$ Per Unit","Total Cost"]
[24,"Girdles",{"$nulls":5},10,8,4,2,null,{"$f":"SUM(F7:L7)","v":24},{"$f":"M7-A7","v":0},null,null,{"$f":"R7/M7","v":0},null,null,{"$f":"S7*M7","v":0},null,{"$f":"U7*M7","v":0},null,{"$f":"W7*M7","v":0},null,{"$f":"Y7*M7","v":0},null,{"$f":"AA7*M7","v":0},null,{"$f":"AC7*M7","v":0},null,{"$f":"AE7*M7","v":0}]
[20,"Fox 40 International Classic Whistles with lanyarnd cord",{"$nulls":3},20,{"$nulls":6},20,0,null,null,0,null,null,0,null,0,null,0,null,0,null,0,null,0,null,0]
[100,"Mouthguards Orange",{"$nulls":3},100,{"$nulls":6},100,0,null,null,0,null,null,0,null,0,null,0,null,0,null,0,null,0,null,0]
[null,"Biolite Breathable Varsity Lightweight thigh pads (pair)",{"$nulls":10},0,0,null,null,{"$error":"#DIV/0!"},null,null,0,null,0,null,0,null,0,null,0,null,0,null,0]
[null,"Biolite Breathable Varsity Lightweight knee pads (pair)",{"$nulls":10},0,0,null,null,{"$error":"#DIV/0!"},null,null,0,null,0,null,0,null,0,null,0,null,0,null,0]
[20,"Mesh Practivce Jerseys",null,"Orange w/ white screen print","Orange",{"$nulls":3},10,5,3,2,20,0,null,null,0,null,null,0,null,0,null,0,null,0,null,0,null,0,null,0]
[null,"Large interlocking PN helmet logo with \"FOOTBALL\" ",{"$nulls":10},0,0,null,null,{"$error":"#DIV/0!"},null,null,0,null,0,null,0,null,0,null,0,null,0,null,0]
[50,"Helmet Decals Interlocking PN. Brown outlined in orange",{"$nulls":3},50,{"$nulls":6},50,0,null,null,0,null,null,0,null,0,null,0,null,0,null,0,null,0,null,0]
[20,"3 inch Die Cut block helmet number sheets (orange)1-10",{"$nulls":3},20,{"$nulls":6},20,0,null,null,0,null,null,0,null,0,null,0,null,0,null,0,null,0,null,0]
[20,"Athletic Specialties webbed belts white",{"$nulls":3},20,{"$nulls":6},20,0,null,null,0,null,null,0,null,0,null,0,null,0,null,0,null,0,null,0]
[20,"Fisher Strike Vests","Strike Vest",null,null,20,{"$nulls":6},20,0,null,null,0,null,null,0,null,0,null,0,null,0,null,0,null,0,null,0]
[40,"Blue Practice Pinnies","Mesh Practice Vest","Velcro straps","Blue",40,{"$nulls":6},40,0,null,null,0,null,null,0,null,0,null,0,null,0,null,0,null,0,null,0]
[4,"Orange Stunt Shield","Stunt Shield",null,"Orange",4,{"$nulls":6},4,0,null,null,0,null,null,0,null,0,null,0,null,0,null,0,null,0,null,0]
[null,"Riddell Speed Flex InSite Helmet (10)",{"$nulls":10},0,0,null,null,{"$error":"#DIV/0!"},null,null,0,null,0,null,0,null,0,null,0,null,0,null,0]
[null,"Riddell Speed Chin Straps",{"$nulls":10},0,0,null,null,{"$error":"#DIV/0!"},null,null,0,null,0,null,0,null,0,null,0,null,0,null,0]
[null,"Speed Flex Threaded Valve caps – 20",{"$nulls":10},0,0,null,null,{"$error":"#DIV/0!"},null,null,0,null,0,null,0,null,0,null,0,null,0,null,0]
[null,"Thumbscrews - 10",{"$nulls":10},0,0,null,null,{"$error":"#DIV/0!"},null,null,0,null,0,null,0,null,0,null,0,null,0,null,0]
[null,"Cam Loc Rubber Stoppers – 20",{"$nulls":10},0,0,null,null,{"$error":"#DIV/0!"},null,null,0,null,0,null,0,null,0,null,0,null,0,null,0]
[null,"Quick Release mini pins -10",{"$nulls":10},0,0,null,null,{"$error":"#DIV/0!"},null,null,0,null,0,null,0,null,0,null,0,null,0,null,0]
[null,"Quick Release Receptacle - 10",{"$nulls":10},0,0,null,null,{"$error":"#DIV/0!"},null,null,0,null,0,null,0,null,0,null,0,null,0,null,0]
[null,"Quick Release Combo tool - 4",{"$nulls":10},0,0,null,null,{"$error":"#DIV/0!"},null,null,0,null,0,null,0,null,0,null,0,null,0,null,0]
[null,"Speed Flex chinstraps white – 12",{"$nulls":10},0,0,null,null,{"$error":"#DIV/0!"},null,null,0,null,0,null,0,null,0,null,0,null,0,null,0]
[null,"Speed chinstraps white – 10",{"$nulls":10},0,0,null,null,{"$error":"#DIV/0!"},null,null,0,null,0,null,0,null,0,null,0,null,0,null,0]
[null,"Speed Flex face frames ¾” right – 2",{"$nulls":10},0,0,null,null,{"$error":"#DIV/0!"},null,null,0,null,0,null,0,null,0,null,0,null,0,null,0]
[null,"Speed Flex face frames ¾” left -2",{"$nulls":10},0,0]
[null,"Speed Flex Face frames 1” right -2",{"$nulls":10},0,0]
[null,"Speed Flex face frames 1” left -2",{"$nulls":10},0,0]
[null,"Riddel 360 QR Kit",{"$nulls":10},0,0]
[null,"Riddel Speed QR Kit",{"$nulls":10},0,0]
[null,"Riddel Speed Flex QR Kit",{"$nulls":10},0,0,null,null,{"$f":"R36/M36","v":{"$error":"#DIV/0!"}},null,null,{"$f":"S36*M36","v":0},null,{"$f":"U36*M36","v":0},null,{"$f":"W36*M36","v":0},null,{"$f":"Y36*M36","v":0},null,{"$f":"AA36*M36","v":0},null,{"$f":"AC36*M36","v":0},null,{"$f":"AE36*M36","v":0}]
[null,"Riddell Speed S Pads",{"$nulls":10},0,0,null,null,{"$error":"#DIV/0!"},null,null,0,null,0,null,0,null,0,null,0,null,0,null,0]
[null,"Riddell Speedflex Face Frame Pad",{"$nulls":10},0,0,null,null,{"$error":"#DIV/0!"},null,null,0,null,0,null,0,null,0,null,0,null,0,null,0]
[null,"Riddell 360 Face Frame Pad Assembly",{"$nulls":10},0,0,null,null,{"$error":"#DIV/0!"},null,null,0,null,0,null,0,null,0,null,0,null,0,null,0]
[3,"QB/WR Shoulder Pads (Riddel Power SPK equivalent)",{"$nulls":5},2,1,{"$nulls":3},3,0,null,null,0,null,null,0,null,0,null,0,null,0,null,0,null,0,null,0]
[4,"RB/DB Shoulder Pads (Riddel Power SPK equivalent)",{"$nulls":5},4,{"$nulls":4},4,0,null,null,0,null,null,0,null,0,null,0,null,0,null,0,null,0,null,0]
[3,"FB/LB Shoulder Pads (Riddel Power SPK equivalent)",{"$nulls":5},2,1,{"$nulls":3},3,0,null,null,0,null,null,0,null,0,null,0,null,0,null,0,null,0,null,0]
[3,"OL/DL Shoulder Pads (Riddel Power SPK equivalent)",{"$nulls":5},2,1,{"$nulls":3},3,0,null,null,0,null,null,0,null,0,null,0,null,0,null,0,null,0,null,0]
[1,"Throwing Net","Sample",null,null,1,{"$nulls":6},1,0]
[1,"Landing Mat","Sample",null,null,1,{"$nulls":6},1,0]
[5,"Water Bottles","Sample","Sets of 6",null,5,{"$nulls":6},5,0]
[5,"Bottle Carrier","Sample",null,null,5,{"$nulls":6},5,0]
[3,"Storage Hooks","Sample","Sets of 6",null,3,{"$nulls":6},3,0,null,null,{"$f":"R48/M48","v":0},null,null,{"$f":"S48*M48","v":0},null,{"$f":"U48*M48","v":0},null,{"$f":"W48*M48","v":0},null,{"$f":"Y48*M48","v":0},null,{"$f":"AA48*M48","v":0},null,{"$f":"AC48*M48","v":0},null,{"$f":"AE48*M48","v":0}]
[{"$nulls":12},0,0,null,null,{"$error":"#DIV/0!"},null,null,0,null,0,null,0,null,0,null,0,null,0,null,0]
[{"$nulls":12},0,0,null,null,{"$error":"#DIV/0!"},null,null,0,null,0,null,0,null,0,null,0,null,0,null,0]
[{"$nulls":12},0,0,null,null,{"$error":"#DIV/0!"},null,null,0,null,0,null,0,null,0,null,0,null,0,null,0]
[{"$nulls":12},0,0,null,null,{"$error":"#DIV/0!"},null,null,0,null,0,null,0,null,0,null,0,null,0,null,0]
[{"$f":"SUM(A7:A52)","v":346},{"$nulls":11},{"$f":"SUM(M7:M52)","v":346},0]
[{"$nulls":12},"Total Cost",{"$nulls":3},"Shipping"]
[{"$nulls":16},"Grand Total",{"$f":"SUM(R7:R52)+R54","v":{"v":0,"d":"$0.00"}},null,{"$f":"SUM(T7:T52)+T54","v":{"v":0,"d":"$0.00"}},null,{"$f":"SUM(V7:V52)+V54","v":{"v":0,"d":"$0.00"}},null,{"$f":"SUM(X7:X52)+X54","v":{"v":0,"d":"$0.00"}},null,{"$f":"SUM(Z7:Z52)+Z54","v":{"v":0,"d":"$0.00"}},null,{"$f":"SUM(AB7:AB52)+AB54","v":{"v":0,"d":"$0.00"}},null,{"$f":"SUM(AD7:AD52)+AD54","v":{"v":0,"d":"$0.00"}},null,{"$f":"SUM(AF7:AF52)+AF54","v":{"v":0,"d":"$0.00"}}]